bitfinex-derivatives/quotes_ETHF0:USTF0_20250607
["timestamp","ask_amount","ask_price","bid_price","bid_amount"]
[1749339724692,2.12833,2523.7,2523.6,0.79205]
[1749339724992,3.44249162,2523.7,2523.6,0.79205]
[1749339725486,2.65046162,2523.7,2523.6,0.79205]
[1749339725689,1.31416162,2523.7,2523.6,0.79205]
[1749339725884,0.6344,2524.3,2523.9,0.79195]
[1749339726083,0.0059393,2524.6,2524.1,3.2078]
[1749339726284,2.1071971,2524.5,2524.3,0.7918]
[1749339726484,1.3154171,2524.4,2524.3,0.7918]
[1749339727593,0.79176,2524.5,2524.4,0.79179]
[1749339727895,2.10575138,2524.5,2524.4,0.79179]
[1749339729293,0.79179,2524.4,2524.2,0.79184]
[1749339729586,0.79183,2524.3,2524.2,0.79184]
[1749339729788,0.6390393,2524.6,2524.2,0.79184]
[1749339729986,0.79182,2524.4,2524.2,0.79184]
[1749339730295,0.6390393,2524.6,2524.2,0.79184]
[1749339730591,1.31409905,2524.5,2524.1,3.99967]
[1749339730793,0.79184,2524.3,2524.2,0.79186]
[1749339731785,0.79182,2524.4,2524.2,0.79186]
[1749339732194,0.79183,2524.3,2524.2,0.79186]
[1749339733296,2.10661939,2524.3,2524.2,0.79186]
[1749339733894,2.10664395,2524.3,2524.2,0.79186]
[1749339734095,0.79183,2524.3,2524.2,0.79186]
[1749339734288,1.31479093,2524.3,2524.2,0.79184]
[1749339735994,1.31521647,2524.4,2524.1,3.8518]
[1749339736195,1.31521647,2524.3,2524.2,0.79186]
[1749339736698,2.10704647,2524.3,2524.2,0.79186]
[1749339737495,0.79186,2524.2,2524.1,3.2078]
[1749339737701,1.47066,2524.2,2524.1,3.2078]
[1749339738704,0.6788,2524.2,2524.1,3.99969]
[1749339740902,0.6788,2524.2,2524.1,4.06860172]
[1749339741602,1.47066,2524.2,2524.1,4.06860172]
[1749339741996,1.47066,2524.2,2524.1,0.86080172]
[1749339742199,1.47066,2524.2,2524.1,0.06891172]
[1749339742795,1.47066,2524.2,2524.1,0.86080172]
[1749339743004,1.47066,2524.2,2524.1,0.06891172]
[1749339744003,1.47066,2524.2,2524.1,1.40901172]
[1749339744403,1.47066,2524.2,2524.1,2.20090172]
[1749339744603,0.6788,2524.2,2524.1,2.20090172]
[1749339744803,0.79185,2524.3,2524.2,0.79186]
[1749339744998,0.79185,2524.3,2524.2,2.13196]
[1749339745498,2.10657116,2524.3,2524.2,2.13196]
[1749339748611,1.31472116,2524.3,2524.2,2.13196]
[1749339749000,1.48848,2524.5,2524.4,0.79179]
[1749339749202,2.0117246,2524.5,2524.4,0.79179]
[1749339750009,0.79179,2524.4,2524.3,2.18401]
[1749339750213,2.1068146,2524.4,2524.3,2.18401]
[1749339756211,2.1068146,2524.4,2524.3,2.25292172]
[1749339757207,1.3150246,2524.4,2524.3,2.25292172]
[1749339758807,2.1068246,2524.4,2524.3,2.25292172]
[1749339760207,2.1068246,2524.4,2524.3,0.06891172]
[1749339764114,7.1068246,2524.4,2524.3,1e-08]
[1749339764316,8.0454246,2524.4,2524.3,1e-08]
[1749339765716,7.1068246,2524.4,2524.3,1e-08]
[1749339766518,2.1068246,2524.4,2524.3,1e-08]
[1749339767518,3.0455246,2524.4,2524.3,1e-08]
[1749339768714,8.0455246,2524.4,2524.3,1e-08]
[1749339771417,6.8128246,2524.4,2524.3,1e-08]
[1749339772128,7.7516246,2524.4,2524.3,1e-08]
[1749339773322,12.7516246,2524.4,2524.3,1e-08]
[1749339774212,6.8128246,2524.4,2524.3,1e-08]
[1749339775018,6.81304172,2524.4,2524.3,1e-08]
[1749339778620,6.81226485,2524.4,2524.3,1e-08]
[1749339780931,2.10626485,2524.4,2524.3,1e-08]
[1749339781130,6.81326485,2524.4,2524.3,1e-08]
[1749339786534,10.02106485,2524.4,2524.3,1e-08]
[1749339787933,10.02006485,2524.4,2524.3,1e-08]
[1749339794038,5.31406485,2524.4,2524.3,1e-08]
[1749339794437,5.31406485,2524.4,2524.3,1.25550001]
[1749339794645,5.31406485,2524.4,2524.3,2.59610001]
[1749339799239,2.10626485,2524.4,2524.3,2.59610001]
[1749339801543,2.10626485,2524.4,2524.3,3.38793001]
[1749339802443,2.10626485,2524.4,2524.3,2.59610001]
[1749339805547,2.10626485,2524.4,2524.3,3.38793001]
[1749339811458,1.31446485,2524.4,2524.3,3.38793001]
[1749339817164,2.10625485,2524.4,2524.3,1.25550001]
[1749339817364,2.74115485,2524.4,2524.3,1.25550001]
[1749339817566,2.74115485,2524.4,2524.3,2.04733001]
[1749339818364,2.10625485,2524.4,2524.3,2.04733001]
[1749339818565,1.31446485,2524.4,2524.3,2.74183001]
[1749339820559,2.10625485,2524.4,2524.3,1.25550001]
[1749339822371,2.10625485,2524.4,2524.3,2.04733001]
[1749339822570,1.31446485,2524.4,2524.3,2.04733001]
[1749339823370,2.10625485,2524.4,2524.3,2.04733001]
[1749339823568,1.31446485,2524.4,2524.3,2.04733001]
[1749339827274,2.10625485,2524.4,2524.3,2.04733001]
[1749339827462,2.10625485,2524.4,2524.3,1e-08]
[1749339827863,2.10625485,2524.4,2524.3,0.79183001]
[1749339827864,1.31446485,2524.4,2524.3,0.79183001]
[1749339828069,2.11181021,2524.4,2524.3,0.79183001]
[1749339828671,1.32002021,2524.4,2524.3,0.79183001]
[1749339853989,2.11181021,2524.4,2524.3,0.79183001]
[1749339854483,1.32002021,2524.4,2524.3,0.79183001]
[1749339861599,1.32002021,2524.4,2524.3,3.99963001]
[1749339862195,0.0059393,2524.6,2524.5,0.79176]
[1749339862398,1.31345196,2524.6,2524.5,0.79176]
[1749339862600,1.31345196,2524.6,2524.5,2.09886]
[1749339863402,1.48079,2525.4,2524.8,1.97912]
[1749339863695,0.79152,2525.3,2525.2,0.79153]
[1749339864999,2.1603,2525.4,2525.2,0.79153]
[1749339865187,2.1603,2525.4,2525.0,1.3718393]
[1749339865188,1.3688,2525.4,2525.3,2.15741]
[1749339865593,0.6795,2525.4,2525.3,2.15741]
[1749339865797,4.0051993,2525.5,2525.3,1.3659]
[1749339865998,4.6846993,2525.5,2525.4,1.3604]
[1749339867596,0.79149,2525.4,2525.0,4.6989393]
[1749339867800,0.79149,2525.4,2525.1,1.3604]
[1749339868400,0.79149,2525.4,2525.2,0.6341]
[1749339868597,0.79149,2525.4,2525.3,1.3604]
[1749339869107,0.79149,2525.4,2525.3,2.15191]
[1749339869596,0.79149,2525.4,2525.3,1.3604]
[1749339870498,0.79153,2525.3,2525.0,0.0059393]
[1749339870705,0.79153,2525.3,2525.2,0.79154]
[1749339871005,4.6847093,2525.5,2525.1,1.2857]
[1749339871505,4.6847093,2525.5,2525.4,0.79149]
[1749339871802,4.6847093,2525.5,2525.3,0.79149]
[1749339872003,4.6847093,2525.5,2525.4,1.2951]
[1749339872705,0.79156,2525.2,2525.1,0.79157]
[1749339873106,0.6616,2525.4,2525.0,6.6330393]
[1749339873307,0.6879,2525.1,2525.0,6.6330393]
[1749339873604,0.6879,2525.1,2525.0,6.1295493]
[1749339880710,0.6879,2525.1,2525.0,1.4365493]
[1749339890208,1.98986379,2525.1,2525.0,1.4365493]
[1749339893516,1.98986379,2525.1,2525.0,2.7006493]
[1749339898720,0.6879,2525.1,2525.0,2.7006493]
[1749339899120,1.99204753,2525.1,2525.0,2.7006493]
[1749339899825,0.6879,2525.1,2525.0,2.7006493]
[1749339900330,1.47947,2525.1,2525.0,0.0059393]
[1749339901619,2.41747,2525.1,2525.0,0.0059393]
[1749339901826,3.72109336,2525.1,2525.0,0.0059393]
[1749339902519,1.99152336,2525.1,2525.0,0.7975493]
[1749339903021,1.30362336,2525.1,2525.0,0.7975493]
[1749339903232,1.30362336,2525.1,2525.0,2.8166493]
[1749339907742,2.09520336,2525.1,2525.0,2.8166493]
[1749339908534,1.30362336,2525.1,2525.0,2.8166493]
[1749339910129,2.09520336,2525.1,2525.0,1.3719393]
[1749339910326,2.09520336,2525.1,2525.0,0.0059393]
[1749339910726,2.09520336,2525.1,2525.0,0.7975493]
[1749339911034,2.09520336,2525.1,2525.0,0.0059393]
[1749339911237,2.09520336,2525.1,2525.0,0.7975493]
[1749339911735,2.09520336,2525.1,2525.0,2.0708493]
[1749339912136,1.30362336,2525.1,2525.0,2.0708493]
[1749339913337,2.09520336,2525.1,2525.0,2.0708493]
[1749339913730,2.09520336,2525.1,2525.0,1.2792393]
[1749339913936,2.09520336,2525.1,2525.0,0.0059393]
[1749339917739,2.09520336,2525.1,2525.0,0.7975493]
[1749339917939,2.09520336,2525.1,2525.0,0.0059393]
[1749339920236,2.09520336,2525.1,2525.0,0.7975493]
[1749339920541,2.09520336,2525.1,2525.0,0.0059393]
[1749339938255,7.09520336,2525.1,2525.0,0.06617041]
[1749339939450,2.09520336,2525.1,2525.0,0.06617041]
[1749339959270,0.79164,2524.9,2524.8,0.6301]
[1749339959464,0.79167,2524.8,2524.7,1.3566]
[1749339959771,2.09529336,2524.8,2524.7,1.3566]
[1749339963280,5.30309336,2524.8,2524.7,1.3566]
[1749339970182,0.79173,2524.6,2524.5,0.0059393]
[1749339970473,0.79173,2524.6,2524.5,1.3627393]
[1749339970675,2.09535336,2524.6,2524.5,1.3627393]
[1749339972982,2.08888905,2524.6,2524.5,1.3627393]
[1749339979875,2.08888905,2524.6,2524.5,0.0059393]
[1749339980073,2.72148905,2524.6,2524.5,0.0059393]
[1749339983183,2.72148905,2524.6,2524.5,9.3e-06]
[1749339983381,5.84268092,2524.6,2524.5,9.3e-06]
[1749339984184,6.78038092,2524.6,2524.5,9.3e-06]
[1749339985277,29.89738092,2524.6,2524.5,9.3e-06]
[1749339985481,26.77618905,2524.6,2524.5,9.3e-06]
[1749339985786,0.79198,2523.8,2523.7,0.6438]
[1749339985975,5.29693905,2523.8,2523.7,0.6438]
[1749339994792,5.29474546,2523.8,2523.7,0.6438]
[1749339996586,5.29474546,2523.8,2523.7,6.43581]
[1749339996587,1.29496546,2523.8,2523.7,6.43581]
[1749339996888,0.0059393,2524.0,2523.9,0.79195]
[1749339997089,5.46888,2524.2,2523.9,0.79195]
[1749339997282,0.7919,2524.1,2523.9,0.79195]
[1749339997479,0.7919,2524.1,2524.0,0.6297]
[1749339999787,3.13265281,2525.2,2524.0,29.5917]
[1749339999984,0.79157,2525.2,2525.0,3.2078]
[1749340000189,3.2078,2525.7,2525.1,1.371]
[1749340000389,0.79152,2525.3,2525.1,2.6328]
[1749340000693,0.79152,2525.3,2525.2,1.2618]
[1749340001192,0.79152,2525.3,2525.2,6.2618]
[1749340001392,0.79152,2525.3,2525.2,1.2618]
[1749340003492,0.7915,2525.4,2525.2,1.2618]
[1749340003690,0.79151,2525.3,2525.2,1.2618]
[1749340005694,0.79157,2525.1,2525.0,0.0059393]
[1749340005895,3.99937,2525.1,2525.0,0.0059393]
[1749340007796,8.67537,2525.1,2525.0,0.0059393]
[1749340009594,9.9130903,2525.1,2525.0,0.0059393]
[1749340009799,8.67537,2525.1,2525.0,0.0059393]
[1749340020722,5.46757,2525.1,2525.0,0.0059393]
[1749340020921,8.67537,2525.1,2525.0,0.0059393]
[1749340023223,5.24986534,2525.1,2525.0,0.0059393]
[1749340023419,9.92086534,2525.1,2525.0,0.0059393]
[1749340027323,5.24986534,2525.1,2525.0,0.0059393]
[1749340027628,5.24986534,2525.1,2525.0,1.3005393]
[1749340030620,2.04206534,2525.1,2525.0,1.3005393]
[1749340030826,5.24986534,2525.1,2525.0,1.3005393]
[1749340034228,2.04206534,2525.1,2525.0,1.3005393]
[1749340035233,5.24986534,2525.1,2525.0,0.0059393]
[1749340039738,2.04206534,2525.1,2525.0,0.0059393]
[1749340039941,5.24986534,2525.1,2525.0,0.0059393]
[1749340044244,9.91786534,2525.1,2525.0,0.0059393]
[1749340044545,1.25049534,2525.1,2525.0,0.7975493]
[1749340044744,1.25049534,2525.1,2525.0,7.0951493]
[1749340049242,0.79153,2525.3,2525.1,0.79155]
[1749340049544,0.79153,2525.3,2525.2,2.0335]
[1749340049743,0.79149,2525.4,2525.2,2.82503]
[1749340049946,1.25748099,2525.3,2525.2,1.46503]
[1749340054661,1.25732909,2525.3,2525.2,1.46504]
[1749340057061,1.25732909,2525.3,2525.2,6.46504]
[1749340057261,1.25732909,2525.3,2525.2,14.33984]
[1749340057466,0.0059393,2525.5,2525.4,0.79148]
[1749340063576,0.0059393,2525.5,2525.4,2.07508]
[1749340066277,0.7973893,2525.5,2525.4,1.2836]
[1749340067569,0.0059393,2525.5,2525.4,1.2836]
[1749340067964,0.7973893,2525.5,2525.4,1.2836]
[1749340068576,0.7973893,2525.5,2525.4,2.07508]
[1749340068879,0.7973893,2525.5,2525.4,2.07509]
[1749340069876,2.04773462,2525.5,2525.4,2.07509]
[1749340070378,2.04773462,2525.5,2525.4,1.2836]
[1749340070572,2.04773462,2525.5,2525.4,2.07508]
[1749340070975,2.04773462,2525.5,2525.4,1.2836]
[1749340071979,2.04773462,2525.5,2525.4,2.07508]
[1749340072779,0.79151,2525.3,2525.2,8.5483]
[1749340073073,0.79151,2525.3,2525.1,6.025]
[1749340073278,2.04185532,2525.3,2525.2,0.79154]
[1749340073766,0.79154,2525.2,2525.1,5.45558]
[1749340074080,2.04188532,2525.2,2525.1,5.45558]
[1749340074576,1.25034532,2525.2,2525.1,0.79158]
[1749340076983,2.04365169,2525.3,2525.1,0.79157]
[1749340077284,1.25213169,2525.2,2525.0,4.6699393]
[1749340077485,2.109,2525.4,2525.3,0.79151]
[1749340077684,3.36125031,2525.4,2525.3,0.79151]
[1749340079682,2.56975031,2525.4,2525.3,0.79151]
[1749340080585,3.36123031,2525.4,2525.3,0.79151]
[1749340081180,2.56975031,2525.4,2525.3,0.79151]
[1749340081984,3.36123031,2525.4,2525.3,0.79151]
[1749340082882,3.36178455,2525.4,2525.3,0.79151]
[1749340084888,0.79152,2525.3,2525.2,0.79152]
[1749340085092,2.04432455,2525.3,2525.2,0.79152]
[1749340090795,2.04432455,2525.3,2525.0,0.0059393]
[1749340090796,0.79157,2525.1,2525.0,0.0059393]
[1749340090993,2.04437455,2525.1,2525.0,0.0059393]
[1749340091888,2.04437455,2525.1,2525.0,0.7975493]
[1749340092796,1.25280455,2525.1,2525.0,0.7975493]
[1749340092999,2.04437455,2525.1,2525.0,0.7975493]
[1749340095092,1.25280455,2525.1,2525.0,0.7975493]
[1749340095896,1.25280455,2525.1,2525.0,2.0996493]
[1749340099899,0.0059393,2525.5,2525.4,0.79148]
[1749340101099,0.0059393,2525.5,2525.4,1.46728]
[1749340102302,3.8744,2526.0,2525.9,0.79132]
[1749340103310,3.2078,2526.0,2525.9,0.79132]
[1749340103606,3.2078,2526.0,2525.9,2.13902]
[1749340103806,0.0059393,2526.2,2526.1,0.79126]
[1749340105004,0.0059393,2526.2,2526.0,2.08808]
[1749340105201,0.79127,2526.1,2526.0,1.2968]
[1749340105709,0.79127,2526.1,2526.0,2.08809]
[1749340106202,0.7971893,2526.2,2526.0,2.08809]
[1749340107007,0.0059393,2526.2,2526.1,0.79126]
[1749340107208,0.0059393,2526.2,2526.1,2.17006]
[1749340107604,0.0059393,2526.2,2526.1,5.37786]
[1749340113509,0.0059393,2526.2,2526.1,6.01106]
[1749340116809,0.6912,2526.6,2526.5,0.79114]
[1749340117225,1.46855,2526.8,2526.3,1.9747]
[1749340117411,0.79108,2526.7,2526.6,0.79109]
[1749340117707,0.79108,2526.7,2526.5,0.79112]
[1749340117915,0.79108,2526.7,2526.6,0.7911]
[1749340118103,0.79108,2526.7,2526.5,2.11392]
[1749340118505,0.79108,2526.7,2526.6,0.7911]
[1749340118706,0.79108,2526.7,2526.5,2.11391]
[1749340119016,0.7911,2526.6,2526.5,2.11391]
[1749340119218,1.3687,2526.8,2526.6,0.7911]
[1749340119414,1.3687,2526.8,2526.7,0.79107]
[1749340119717,2.15974,2526.8,2526.7,0.79107]
[1749340122420,1.3687,2526.8,2526.7,0.79107]
[1749340123521,2.15974,2526.8,2526.7,0.79107]
[1749340124820,0.7911,2526.7,2526.6,0.79109]
[1749340125612,2.15976,2526.8,2526.7,0.79107]
[1749340126519,0.79109,2526.7,2526.6,0.79107]
[1749340126724,2.15977,2526.8,2526.7,0.79107]
[1749340126922,0.79111,2526.7,2526.6,0.7911]
[1749340128323,2.15976,2526.8,2526.7,0.79107]
[1749340130529,0.79109,2526.7,2526.6,0.79109]
[1749340130730,0.79117,2526.5,2526.4,0.79116]
[1749340131623,0.79113,2526.6,2526.5,0.79113]
[1749340132627,2.06188263,2526.6,2526.5,0.79113]
[1749340135325,1.27075263,2526.6,2526.5,0.79113]
[1749340136333,2.06186263,2526.6,2526.5,0.79113]
[1749340138335,1.27075263,2526.6,2526.5,0.79113]
[1749340138831,2.06186263,2526.6,2526.5,0.79113]
[1749340139030,1.27075263,2526.6,2526.5,0.79113]
[1749340140327,2.06186263,2526.6,2526.5,0.79113]
[1749340144137,0.79117,2526.4,2526.3,0.0059393]
[1749340144540,2.06192263,2526.4,2526.3,0.0059393]
[1749340144731,3.31752263,2526.4,2526.3,0.0059393]
[1749340146136,3.31752263,2526.4,2525.5,0.79144]
[1749340146137,1.978,2526.3,2525.5,0.79144]
[1749340146333,3.2078,2526.0,2525.7,0.79138]
[1749340146637,0.79136,2525.8,2525.7,0.79138]
[1749340146835,1.27075263,2525.8,2525.7,0.79138]
[1749340147029,2.06211263,2525.8,2525.7,0.79139]
[1749340147233,1.27075263,2525.8,2525.7,0.79139]
[1749340147427,2.06211263,2525.8,2525.7,0.79139]
[1749340147629,1.27075263,2525.8,2525.7,0.79139]
[1749340147831,2.06211263,2525.8,2525.7,0.79139]
[1749340148240,1.27075263,2525.8,2525.7,0.79139]
[1749340148843,1.27075263,2525.8,2525.6,0.7914]
[1749340149139,0.79137,2525.8,2525.6,0.7914]
[1749340149333,0.6754,2525.7,2525.6,0.7914]
[1749340150041,1.46679,2525.7,2525.6,0.7914]
[1749340150243,0.6754,2525.7,2525.6,0.7914]
[1749340151036,1.46679,2525.7,2525.6,0.7914]
[1749340151236,0.6754,2525.7,2525.6,0.7914]
[1749340151437,3.2078,2526.0,2525.8,0.79136]
[1749340151743,0.6382,2525.9,2525.8,0.79136]
[1749340152439,1.42952,2525.9,2525.8,0.79136]
[1749340153030,3.8817,2526.3,2526.2,0.79123]
[1749340153241,4.47532584,2526.3,2526.2,0.79123]
[1749340154237,5.26652584,2526.3,2526.2,0.79123]
[1749340154444,4.47532584,2526.3,2526.2,0.79123]
[1749340154639,0.79117,2526.4,2526.3,0.79117]
[1749340154841,1.26740292,2526.4,2526.3,0.79117]
[1749340155038,5.44615,2526.5,2526.4,0.79117]
[1749340155343,6.71359709,2526.5,2526.4,0.79117]
[1749340155945,1.26744709,2526.5,2526.4,0.79117]
[1749340156146,0.79111,2526.6,2526.5,0.79112]
[1749340156333,2.05883637,2526.6,2526.5,0.79112]
[1749340157636,2.05883637,2526.6,2526.4,0.79114]
[1749340157848,0.79114,2526.5,2526.4,0.79114]
[1749340158231,3.9008,2526.7,2526.3,1.47139]
[1749340158443,0.79117,2526.4,2526.3,1.47139]
[1749340158636,0.79123,2526.2,2526.1,4.655]
[1749340159144,0.79123,2526.2,2526.0,0.79127]
[1749340159145,0.79128,2526.1,2525.9,5.9945]
[1749340159342,0.79124,2526.2,2525.9,5.9945]
[1749340160540,0.79124,2526.2,2526.1,0.79126]
[1749340160740,2.05882481,2526.2,2526.1,0.79126]
[1749340160935,1.26758481,2526.2,2526.1,0.79126]
[1749340161134,1.47571,2526.3,2526.1,0.79126]
[1749340161336,1.47571,2526.3,2526.2,0.79123]
[1749340161535,2.74344504,2526.3,2526.2,0.79123]
[1749340162841,0.79123,2526.2,2526.1,0.79124]
[1749340163144,2.05901731,2526.2,2526.0,0.79127]
[1749340163345,0.79123,2526.2,2526.1,0.79126]
[1749340163546,2.05908683,2526.2,2526.1,0.79126]
[1749340164341,2.05908683,2526.2,2526.0,0.79127]
[1749340164543,0.79123,2526.2,2526.1,0.79126]
[1749340165245,2.05971375,2526.2,2526.1,0.79126]
[1749340172452,1.26848375,2526.2,2526.1,0.79126]
[1749340173145,0.79129,2526.1,2525.8,7.8598]
[1749340173344,0.79129,2526.1,2526.0,0.79128]
[1749340173552,2.06121802,2526.1,2526.0,0.79128]
[1749340175053,0.79129,2526.0,2525.9,2.1349]
[1749340175554,1.3437,2526.3,2525.9,1.3436]
[1749340175756,0.79128,2526.1,2526.0,0.79127]
[1749340175956,2.06097691,2526.1,2526.0,0.79127]
[1749340177459,1.26969691,2526.1,2526.0,0.79127]
[1749340177650,2.06095691,2526.1,2526.0,0.79127]
[1749340178760,2.06097691,2526.1,2526.0,0.79129]
[1749340180654,3.2078,2526.7,2526.0,0.79129]
[1749340180856,0.79114,2526.5,2526.4,0.79114]
[1749340181162,2.06222481,2526.5,2526.4,0.79114]
[1749340182660,1.27108481,2526.5,2526.4,0.79114]
[1749340183357,1.27152703,2526.6,2526.5,0.79114]
[1749340185360,1.27152703,2526.6,2526.5,2.17534]
[1749340185956,0.6949393,2526.9,2526.8,0.79104]
[1749340186157,2.75011655,2526.9,2526.8,0.79104]
[1749340186353,2.75011655,2526.9,2526.6,1.2944]
[1749340186559,1.26416725,2526.8,2526.7,0.79106]
[1749340187367,2.05520725,2526.8,2526.7,0.79106]
[1749340187770,1.26416725,2526.8,2526.7,0.79106]
[1749340190365,2.05416389,2526.8,2526.7,0.79106]
[1749340190566,2.05416389,2526.8,2526.7,0.79107]
[1749340190767,0.79107,2526.7,2526.6,2.08549]
[1749340191073,2.05417389,2526.7,2526.6,2.08549]
[1749340191969,2.05417389,2526.7,2526.6,0.79109]
[1749340193076,1.26310389,2526.7,2526.6,0.79109]
[1749340193277,0.79107,2526.7,2526.6,0.79109]
[1749340193665,2.05398363,2526.7,2526.6,0.79109]
[1749340194479,0.79112,2526.6,2526.5,0.79112]
[1749340194681,2.71640682,2526.6,2526.5,0.79112]
[1749340198772,1.92528682,2526.6,2526.5,0.79112]
[1749340200777,1.92554229,2526.6,2526.5,0.79112]
[1749340203177,1.92534134,2526.6,2526.5,0.79112]
[1749340203884,1.92543486,2526.6,2526.5,0.79112]
[1749340204987,1.26303486,2526.6,2526.5,0.79112]
[1749340205285,3.2078,2526.7,2526.6,0.7911]
[1749340205476,4.47119744,2526.7,2526.6,0.7911]
[1749340205878,1.26339744,2526.7,2526.6,0.7911]
[1749340206278,1.26339744,2526.7,2526.6,2.1584]
[1749340221697,1.26339744,2526.7,2526.6,0.7911]
[1749340223698,2.05449744,2526.7,2526.6,0.7911]
[1749340223900,1.26339744,2526.7,2526.6,0.7911]
[1749340227495,2.05449744,2526.7,2526.6,0.7911]
[1749340227703,0.79114,2526.6,2526.5,0.79114]
[1749340227894,2.69763744,2526.6,2526.5,0.79114]
[1749340228199,1.90649744,2526.6,2526.5,0.79114]
[1749340230902,1.26339744,2526.6,2526.5,0.79114]
[1749340231106,1.2656757,2526.7,2526.3,3.31454]
[1749340231401,1.2656757,2526.6,2526.5,0.79117]
[1749340231599,1.26568727,2526.7,2526.4,1.3365]
[1749340231901,0.6687,2526.5,2526.4,1.3365]
[1749340232101,1.93438727,2526.5,2526.4,2.1277]
[1749340236309,1.26568727,2526.5,2526.4,2.1277]
[1749340236501,0.6431,2526.7,2526.6,0.79114]
[1749340236702,1.9421335,2526.7,2526.6,0.79114]
[1749340238504,2.7332335,2526.7,2526.6,0.79114]
[1749340239009,1.9421335,2526.7,2526.6,0.79114]
[1749340240405,2.7332335,2526.7,2526.6,0.79114]
[1749340241004,1.9421335,2526.7,2526.6,0.79114]
[1749340242609,5.9410335,2526.7,2526.6,0.79114]
[1749340242808,5.1499335,2526.7,2526.6,0.79114]
[1749340245913,1.9421335,2526.7,2526.6,0.79114]
[1749340248527,2.7332335,2526.7,2526.6,0.79114]
[1749340248719,1.9421335,2526.7,2526.6,0.79114]
[1749340252520,2.7332335,2526.7,2526.6,0.79114]
[1749340258522,1.9421335,2526.7,2526.6,0.79114]
[1749340261926,2.7332335,2526.7,2526.6,0.79114]
[1749340263326,2.71914315,2526.7,2526.6,0.79114]
[1749340267631,1.92804315,2526.7,2526.6,0.79114]
[1749340267925,2.71914315,2526.7,2526.6,0.79114]
[1749340268827,2.71840274,2526.7,2526.6,0.79114]
[1749340272427,0.79128,2526.2,2526.1,0.79128]
[1749340272627,3.2078,2526.3,2526.2,0.79123]
[1749340272926,4.49165267,2526.3,2526.2,0.79123]
[1749340276427,1.28385267,2526.3,2526.2,0.79123]
[1749340277330,2.07508267,2526.3,2526.2,0.79123]
[1749340277830,1.28385267,2526.3,2526.2,0.79123]
[1749340280530,2.07508267,2526.3,2526.2,0.79123]
[1749340281330,2.07510267,2526.3,2526.2,0.79126]
[1749340287035,1.28385267,2526.3,2526.2,0.79126]
[1749340291938,3.13265281,2527.2,2526.8,0.79107]
[1749340292135,0.79103,2527.0,2526.8,3.99887]
[1749340292441,0.6752,2527.1,2526.8,3.99887]
[1749340292629,0.79103,2527.0,2526.8,3.99887]
[1749340292831,0.7969793,2526.9,2526.8,3.99887]
[1749340293031,0.0059393,2526.9,2526.8,3.99887]
[1749340303947,1.27003891,2526.9,2526.8,3.99887]
[1749340307048,1.27003891,2526.9,2526.8,0.79107]
[1749340307644,1.27003891,2526.9,2526.8,2.05647]
[1749340308339,2.06107891,2526.9,2526.8,2.05647]
[1749340308546,1.27003891,2526.9,2526.8,2.05647]
[1749340320350,2.06107891,2526.9,2526.8,2.05647]
[1749340320557,1.27003891,2526.9,2526.8,2.05647]
[1749340324057,2.06107891,2526.9,2526.8,2.05647]
[1749340324757,1.27003891,2526.9,2526.8,2.05647]
[1749340324951,2.06107891,2526.9,2526.8,2.05647]
[1749340327159,2.06107891,2526.9,2526.3,1.97803]
[1749340327160,1.27003891,2526.9,2526.4,3.2078]
[1749340327348,0.79115,2526.6,2526.2,5.1093]
[1749340327657,2.73216961,2526.5,2526.4,0.7912]
[1749340328355,1.94099961,2526.5,2526.4,0.7912]
[1749340329755,2.73216961,2526.5,2526.4,0.7912]
[1749340331159,1.94099961,2526.5,2526.1,3.2078]
[1749340331354,1.26409961,2526.4,2526.1,3.2078]
[1749340331560,1.26409961,2526.4,2526.1,4.5549]
[1749340331858,2.05532961,2526.4,2526.1,4.5549]
[1749340332157,0.79123,2526.4,2526.3,0.79123]
[1749340332352,2.05644579,2526.4,2526.3,0.79123]
[1749340335864,1.26521579,2526.4,2526.3,0.79123]
[1749340342673,0.6769,2526.5,2526.4,0.7912]
[1749340342860,1.92810643,2526.5,2526.4,0.7912]
[1749340343062,1.25120643,2526.5,2526.4,2.045]
[1749340343263,1.88465214,2526.7,2526.6,0.79114]
[1749340343467,1.88465843,2526.7,2526.6,0.79114]
[1749340345264,2.67575843,2526.7,2526.6,0.79114]
[1749340345463,1.88465843,2526.7,2526.6,0.79114]
[1749340346968,2.67575843,2526.7,2526.6,0.79114]
[1749340357996,1.88465843,2526.7,2526.6,0.79114]
[1749340358697,1.88465843,2526.7,2526.6,2.16044]
[1749340361295,2.67575843,2526.7,2526.6,2.16044]
[1749340363495,1.88465843,2526.7,2526.6,2.16044]
[1749340370807,1.88465843,2526.7,2526.6,0.79114]
[1749340371902,2.67575843,2526.7,2526.6,0.79114]
[1749340372098,1.88465843,2526.7,2526.6,0.79114]
[1749340373307,2.67575843,2526.7,2526.6,0.79114]
[1749340373606,1.88465843,2526.7,2526.6,0.79114]
[1749340375209,2.67575843,2526.7,2526.6,0.79114]
[1749340375706,1.88465843,2526.7,2526.6,0.79114]
[1749340376310,2.67575843,2526.7,2526.6,0.79114]
[1749340376508,1.88465843,2526.7,2526.6,0.79114]
[1749340376810,2.67575843,2526.7,2526.6,0.79114]
[1749340377605,1.88465843,2526.7,2526.6,0.79114]
[1749340379003,1.88465843,2526.7,2526.4,3.2078]
[1749340379313,2.04240843,2526.6,2526.5,0.79115]
[1749340379712,2.71590843,2526.6,2526.5,0.79115]
[1749340380413,2.71590843,2526.6,2526.5,0.79117]
[1749340381209,2.71590843,2526.6,2526.4,3.99897]
[1749340381406,1.25125843,2526.5,2526.4,3.999]
[1749340382808,1.25125843,2526.5,2526.4,0.7912]
[1749340383612,1.46464,2526.6,2526.5,0.79117]
[1749340383914,2.73165185,2526.6,2526.5,0.79117]
[1749340385413,1.94051185,2526.6,2526.5,0.79117]
[1749340386415,2.73165185,2526.6,2526.5,0.79117]
[1749340387018,1.94051185,2526.6,2526.5,0.79117]
[1749340387917,2.73165185,2526.6,2526.5,0.79117]
[1749340389215,1.94051185,2526.6,2526.5,0.79117]
[1749340389620,2.73165185,2526.6,2526.5,0.79117]
[1749340391620,2.73165185,2526.6,2526.5,3.99897]
[1749340395721,2.05815185,2526.6,2526.5,3.99897]
[1749340395924,2.05585636,2526.6,2526.5,3.2078]